[Event "*** Titled Tuesday Blitz"]
[Site "Chess.com"]
[Date "2020.02.04"]
[Round "4"]
[White "Shukh_Nikolay"]
[Black "Pultis"]
[Result "0-1"]
[WhiteElo "2523"]
[BlackElo "2732"]
[TimeControl "180+2"]
[EndTime "13:56:11 PST"]
[Termination "Pultis won by resignation"]

1. e4 {[%clk 0:02:59.9]} 1... c5 {[%clk 0:03:00.1]} 2. Nf3 {[%clk 0:03:00.6]}
2... d6 {[%clk 0:02:57.4]} 3. Bb5+ {[%clk 0:03:00.3]} 3... Bd7 {[%clk
0:02:57.6]} 4. Bxd7+ {[%clk 0:03:00.2]} 4... Nxd7 {[%clk 0:02:59.5]} 5. c4
{[%clk 0:02:59.6]} 5... Ngf6 {[%clk 0:02:58]} 6. Nc3 {[%clk 0:02:59.9]} 6... g6
{[%clk 0:02:57]} 7. O-O {[%clk 0:03:00.2]} 7... Bg7 {[%clk 0:02:57.7]} 8. d4
{[%clk 0:03:00]} 8... cxd4 {[%clk 0:02:59.6]} 9. Nxd4 {[%clk 0:02:58.4]} 9...
Rc8 {[%clk 0:03:00.8]} 10. b3 {[%clk 0:02:57.6]} 10... Qa5 {[%clk 0:03:01.9]}
11. Bb2 {[%clk 0:02:55.8]} 11... a6 {[%clk 0:02:57.3]} 12. Qd2 {[%clk
0:02:39.5]} 12... O-O {[%clk 0:02:53.5]} 13. Rad1 {[%clk 0:02:36.1]} 13... b5
{[%clk 0:02:46.1]} 14. cxb5 {[%clk 0:02:31]} 14... axb5 {[%clk 0:02:48]} 15.
Ndxb5 {[%clk 0:02:25.5]} 15... Nxe4 {[%clk 0:02:48.3]} 16. Nxe4 {[%clk
0:02:26.3]} 16... Qxb5 {[%clk 0:02:46.6]} 17. Bxg7 {[%clk 0:02:25.5]} 17... Kxg7
{[%clk 0:02:48.5]} 18. Qb2+ {[%clk 0:02:19.1]} 18... Qe5 {[%clk 0:02:48.6]} 19.
Qxe5+ {[%clk 0:02:19.3]} 19... Nxe5 {[%clk 0:02:50.5]} 20. Rd2 {[%clk
0:02:17.7]} 20... Ra8 {[%clk 0:02:45.7]} 21. Rc1 {[%clk 0:02:06.3]} 21... Rfb8
{[%clk 0:02:42.7]} 22. f4 {[%clk 0:02:04]} 22... Ng4 {[%clk 0:02:40]} 23. h3
{[%clk 0:02:00]} 23... Nf6 {[%clk 0:02:40]} 24. Nxf6 {[%clk 0:01:55.7]} 24...
Kxf6 {[%clk 0:02:41.9]} 25. Rc7 {[%clk 0:01:54.5]} 25... Rb4 {[%clk 0:02:42.3]}
26. g3 {[%clk 0:01:49]} 26... e6 {[%clk 0:02:42.7]} 27. Kg2 {[%clk 0:01:44.7]}
27... d5 {[%clk 0:02:41.6]} 28. Kf3 {[%clk 0:01:44.8]} 28... h5 {[%clk
0:02:41.7]} 29. Re2 {[%clk 0:01:29.3]} 29... Rab8 {[%clk 0:02:32.7]} 30. g4
{[%clk 0:01:27.7]} 30... hxg4+ {[%clk 0:02:32.4]} 31. hxg4 {[%clk 0:01:28.6]}
31... Rh8 {[%clk 0:02:33.8]} 32. g5+ {[%clk 0:01:24.8]} 32... Kg7 {[%clk
0:02:34]} 33. Rxe6 {[%clk 0:01:21.6]} 33... Rbb8 {[%clk 0:02:04.8]} 34. Ree7
{[%clk 0:01:16.9]} 34... Rbf8 {[%clk 0:02:05.4]} 35. Ke3 {[%clk 0:00:41.1]}
35... Rh2 {[%clk 0:02:04.4]} 36. Ra7 {[%clk 0:00:40.4]} 36... Kg8 {[%clk
0:02:02.8]} 37. b4 {[%clk 0:00:39.1]} 37... Rb2 {[%clk 0:02:01.6]} 38. a3 {[%clk
0:00:38.1]} 38... Rb3+ {[%clk 0:01:55.8]} 39. Kd4 {[%clk 0:00:38.9]} 39... Rf3
{[%clk 0:01:57]} 40. Ke5 {[%clk 0:00:38.4]} 40... d4 {[%clk 0:01:58.2]} 41. Rad7
{[%clk 0:00:34.9]} 41... Rxa3 {[%clk 0:01:52.1]} 42. Kxd4 {[%clk 0:00:35.1]}
42... Rf3 {[%clk 0:01:53.2]} 43. Ke4 {[%clk 0:00:35.2]} 43... Rb3 {[%clk
0:01:54.4]} 44. Rb7 {[%clk 0:00:36]} 44... Rb1 {[%clk 0:01:55.7]} 45. b5 {[%clk
0:00:36.2]} 45... Rb4+ {[%clk 0:01:47.9]} 46. Ke5 {[%clk 0:00:33.3]} 46... Kg7
{[%clk 0:01:34.3]} 47. b6 {[%clk 0:00:32.2]} 47... Rb5+ {[%clk 0:01:28.1]} 48.
Ke4 {[%clk 0:00:31.7]} 48... Rb4+ {[%clk 0:01:28.1]} 49. Ke3 {[%clk 0:00:28.9]}
49... Rb3+ {[%clk 0:01:29.2]} 50. Kf2 {[%clk 0:00:21.2]} 50... Kg8 {[%clk
0:01:30]} 51. Ke2 {[%clk 0:00:19.2]} 51... Rb4 {[%clk 0:01:06.2]} 52. Ke3 {[%clk
0:00:19.2]} 52... Rb3+ {[%clk 0:01:07.5]} 53. Kd2 {[%clk 0:00:18.7]} 53... Rb4
{[%clk 0:01:08.2]} 54. Ke3 {[%clk 0:00:19.2]} 54... Rb3+ {[%clk 0:01:09.1]} 55.
Kd4 {[%clk 0:00:19.9]} 55... Rb4+ {[%clk 0:01:09.4]} 56. Ke5 {[%clk 0:00:20.9]}
56... Rb5+ {[%clk 0:01:10.4]} 57. Ke4 {[%clk 0:00:21.8]} 57... Rb4+ {[%clk
0:01:10.8]} 58. Kf3 {[%clk 0:00:23.3]} 58... Rb3+ {[%clk 0:01:10.9]} 59. Kg4
{[%clk 0:00:24.7]} 59... Kg7 {[%clk 0:01:05.6]} 60. Rec7 {[%clk 0:00:24.8]}
60... Kg8 {[%clk 0:01:05.8]} 61. Re7 {[%clk 0:00:15.2]} 61... Kg7 {[%clk
0:00:57.6]} 62. Re4 {[%clk 0:00:12.7]} 62... Kg8 {[%clk 0:00:56.5]} 63. f5
{[%clk 0:00:12.9]} 63... gxf5+ {[%clk 0:00:52.4]} 64. Kxf5 {[%clk 0:00:14.4]}
64... Rc8 {[%clk 0:00:52.8]} 65. Rf4 {[%clk 0:00:11.7]} 65... Rg3 {[%clk
0:00:42.9]} 66. Ke4 {[%clk 0:00:06.2]} 66... Rc4+ {[%clk 0:00:39.7]} 67. Kf5
{[%clk 0:00:07]} 67... Rc5+ {[%clk 0:00:39.5]} 68. Ke4 {[%clk 0:00:08.3]} 68...
Rc4+ {[%clk 0:00:31.2]} 69. Kf5 {[%clk 0:00:09.1]} 69... Rc1 {[%clk 0:00:23.2]}
70. Rb8+ {[%clk 0:00:08.4]} 70... Kg7 {[%clk 0:00:23.1]} 71. b7 {[%clk
0:00:08.3]} 71... Rb1 {[%clk 0:00:22.7]} 72. Rd4 {[%clk 0:00:07.2]} 72... Rb5+
{[%clk 0:00:20.5]} 73. Kf4 {[%clk 0:00:07.8]} 73... Rgxg5 {[%clk 0:00:21.7]} 74.
Rd7 {[%clk 0:00:08]} 74... Rgf5+ {[%clk 0:00:22.4]} 75. Ke4 {[%clk 0:00:08.8]}
75... Rf1 {[%clk 0:00:22.1]} 76. Kd4 {[%clk 0:00:06.9]} 76... Rfb1 {[%clk
0:00:16.6]} 77. Kc4 {[%clk 0:00:03.7]} 77... R5b2 {[%clk 0:00:17.3]} 78. Kc3
{[%clk 0:00:04.6]} 78... Rb6 {[%clk 0:00:16.3]} 79. Kc4 {[%clk 0:00:05.6]} 79...
R6b5 {[%clk 0:00:13.1]} 80. Kc3 {[%clk 0:00:06.3]} 80... R5b2 {[%clk 0:00:14.1]}
81. Kc4 {[%clk 0:00:07.1]} 81... Rc1+ {[%clk 0:00:15.1]} 82. Kd3 {[%clk
0:00:07.9]} 82... Rb6 {[%clk 0:00:14.3]} 83. Kd2 {[%clk 0:00:08.6]} 83... Rcb1
{[%clk 0:00:14.6]} 84. Kc2 {[%clk 0:00:09.4]} 84... R1b5 {[%clk 0:00:15.2]} 85.
Kc3 {[%clk 0:00:10.1]} 85... Rb2 {[%clk 0:00:09.6]} 86. Kd3 {[%clk 0:00:09.4]}
86... R6b3+ {[%clk 0:00:09.8]} 87. Kc4 {[%clk 0:00:10.5]} 87... Rh3 {[%clk
0:00:05.3]} 88. Re7 {[%clk 0:00:09]} 88... Rh4+ {[%clk 0:00:05.7]} 89. Kc3
{[%clk 0:00:09.4]} 89... Rhb4 {[%clk 0:00:06.1]} 90. Rd7 {[%clk 0:00:07.5]}
90... R4b3+ {[%clk 0:00:05.5]} 91. Kc4 {[%clk 0:00:08.3]} 91... Rh3 {[%clk
0:00:07.4]} 92. Re7 {[%clk 0:00:08.1]} 92... Kf6 {[%clk 0:00:08.7]} 93. Rd7
{[%clk 0:00:07.9]} 93... Ke6 {[%clk 0:00:09.8]} 94. Rdd8 {[%clk 0:00:07.6]}
94... Rhb3 {[%clk 0:00:08.7]} 95. Re8+ {[%clk 0:00:08.1]} 95... Kf6 {[%clk
0:00:09.6]} 96. Kd4 {[%clk 0:00:08.1]} 96... Rxb7 {[%clk 0:00:10.8]} 97. Rxb7
{[%clk 0:00:08.9]} 97... Rxb7 {[%clk 0:00:12.7]} 98. Ke3 {[%clk 0:00:10.2]}
98... Re7+ {[%clk 0:00:10.1]} 99. Rxe7 {[%clk 0:00:10.4]} 99... Kxe7 {[%clk
0:00:12]} 100. Ke4 {[%clk 0:00:11.8]} 100... Ke6 {[%clk 0:00:12.1]} 101. Kf4
{[%clk 0:00:12.6]} 101... Kf6 {[%clk 0:00:13.5]} 102. Ke4 {[%clk 0:00:13.5]}
102... Kg5 {[%clk 0:00:14.5]} 0-1

[Event "*** Titled Tuesday Blitz"]
[Site "Chess.com"]
[Date "2020.02.04"]
[Round "5"]
[White "Micki-taryan"]
[Black "korbul"]
[Result "1-0"]
[WhiteElo "2990"]
[BlackElo "2574"]
[TimeControl "180+2"]
[EndTime "14:02:32 PST"]
[Termination "Micki-taryan won by resignation"]

1. d4 {[%clk 0:03:01.8]} 1... Nf6 {[%clk 0:03:00.5]} 2. Nf3 {[%clk 0:03:03]}
2... b6 {[%clk 0:03:01]} 3. c4 {[%clk 0:03:02.1]} 3... e6 {[%clk 0:03:01.5]} 4.
Nc3 {[%clk 0:03:04]} 4... Bb4 {[%clk 0:03:01.1]} 5. g3 {[%clk 0:03:04.8]} 5...
Bb7 {[%clk 0:03:00.6]} 6. Bg2 {[%clk 0:03:06]} 6... O-O {[%clk 0:03:01.6]} 7.
O-O {[%clk 0:03:07.7]} 7... Bxc3 {[%clk 0:03:02.4]} 8. bxc3 {[%clk 0:03:09.6]}
8... Be4 {[%clk 0:03:03.7]} 9. Bh3 {[%clk 0:03:10.1]} 9... d6 {[%clk 0:03:02.8]}
10. Nd2 {[%clk 0:03:11]} 10... Bb7 {[%clk 0:02:59.3]} 11. f3 {[%clk 0:03:12.4]}
11... Nbd7 {[%clk 0:02:58.4]} 12. e4 {[%clk 0:03:13.7]} 12... e5 {[%clk
0:02:59.6]} 13. a4 {[%clk 0:03:14.6]} 13... a5 {[%clk 0:02:57.8]} 14. Rf2 {[%clk
0:03:16]} 14... Re8 {[%clk 0:02:58.2]} 15. Nf1 {[%clk 0:03:17.2]} 15... h6
{[%clk 0:02:55.9]} 16. Ne3 {[%clk 0:03:18.5]} 16... Nf8 {[%clk 0:02:55.7]} 17.
Ba3 {[%clk 0:03:17.5]} 17... Ng6 {[%clk 0:02:54.5]} 18. Rd2 {[%clk 0:03:17.5]}
18... Qb8 {[%clk 0:02:40.6]} 19. c5 {[%clk 0:03:17.6]} 19... dxc5 {[%clk
0:02:31.9]} 20. dxc5 {[%clk 0:03:18.4]} 20... Ba6 {[%clk 0:02:26.8]} 21. c6
{[%clk 0:03:16.5]} 21... Ne7 {[%clk 0:02:12.5]} 22. Bd7 {[%clk 0:03:16.6]} 22...
Qa7 {[%clk 0:01:54.3]} 23. Bxe7 {[%clk 0:03:16.4]} 23... Rxe7 {[%clk 0:01:54.3]}
24. Nf5 {[%clk 0:03:18.1]} 24... Kf8 {[%clk 0:01:21.1]} 25. Nxe7 {[%clk
0:03:09.9]} 25... Kxe7 {[%clk 0:01:21.5]} 26. Kg2 {[%clk 0:03:11.5]} 26... g6
{[%clk 0:01:20.8]} 27. Bh3 {[%clk 0:03:09.1]} 27... Bc4 {[%clk 0:01:16.5]} 28.
Qc1 {[%clk 0:03:07.8]} 28... Kf8 {[%clk 0:01:16.5]} 29. Qa3+ {[%clk 0:03:09.1]}
29... Kg7 {[%clk 0:01:17.1]} 30. Rad1 {[%clk 0:03:10.8]} 30... b5 {[%clk
0:01:16.4]} 31. Rd8 {[%clk 0:03:11.9]} 31... Rxd8 {[%clk 0:01:10.9]} 32. Rxd8
{[%clk 0:03:12.9]} 32... b4 {[%clk 0:01:10]} 33. cxb4 {[%clk 0:03:12.8]} 33...
g5 {[%clk 0:00:56.7]} 34. Bf5 {[%clk 0:03:12]} 34... g4 {[%clk 0:00:51.2]} 35.
b5 {[%clk 0:03:12.9]} 35... gxf3+ {[%clk 0:00:48.2]} 36. Kxf3 {[%clk 0:03:13.1]}
1-0

[Event "*** Titled Tuesday Blitz"]
[Site "Chess.com"]
[Date "2020.02.04"]
[Round "5"]
[White "Pultis"]
[Black "DenishevM"]
[Result "1-0"]
[WhiteElo "2736"]
[BlackElo "2524"]
[TimeControl "180+2"]
[EndTime "14:02:35 PST"]
[Termination "Pultis won by resignation"]

1. d4 {[%clk 0:03:01.9]} 1... Nf6 {[%clk 0:02:50.1]} 2. g3 {[%clk 0:02:56.2]}
2... e6 {[%clk 0:02:49.9]} 3. Bg2 {[%clk 0:02:49.7]} 3... c5 {[%clk 0:02:50.9]}
4. Nf3 {[%clk 0:02:50.1]} 4... cxd4 {[%clk 0:02:40.6]} 5. Nxd4 {[%clk 0:02:52]}
5... d5 {[%clk 0:02:40]} 6. O-O {[%clk 0:02:51.2]} 6... e5 {[%clk 0:02:41]} 7.
Nb3 {[%clk 0:02:50.5]} 7... Nc6 {[%clk 0:02:39.8]} 8. c4 {[%clk 0:02:48.7]} 8...
dxc4 {[%clk 0:02:33.3]} 9. Bxc6+ {[%clk 0:02:48.9]} 9... bxc6 {[%clk 0:02:34.4]}
10. Qxd8+ {[%clk 0:02:50.1]} 10... Kxd8 {[%clk 0:02:36.3]} 11. Na5 {[%clk
0:02:51.5]} 11... Bd6 {[%clk 0:02:20.9]} 12. Rd1 {[%clk 0:02:49.3]} 12... Kc7
{[%clk 0:02:19.6]} 13. Nxc4 {[%clk 0:02:47.4]} 13... Rd8 {[%clk 0:02:21.3]} 14.
Bd2 {[%clk 0:02:39.3]} 14... Bb4 {[%clk 0:02:04.2]} 15. Nxe5 {[%clk 0:02:39.2]}
15... Be6 {[%clk 0:02:00.1]} 16. Nc3 {[%clk 0:02:34.5]} 16... Kb7 {[%clk
0:01:53]} 17. Nd3 {[%clk 0:02:31.1]} 17... Be7 {[%clk 0:01:51.5]} 18. Na4 {[%clk
0:02:29.6]} 18... Ne4 {[%clk 0:01:38.7]} 19. Be3 {[%clk 0:02:30.4]} 19... Bd5
{[%clk 0:01:33.3]} 20. f3 {[%clk 0:02:29.4]} 20... Nf6 {[%clk 0:01:34.2]} 21.
Bc5 {[%clk 0:02:27.4]} 21... Re8 {[%clk 0:01:31.4]} 22. Rac1 {[%clk 0:02:22.7]}
22... Bxa2 {[%clk 0:01:27.2]} 23. Bxe7 {[%clk 0:02:23.4]} 23... Rxe7 {[%clk
0:01:29.1]} 24. Nb4 {[%clk 0:02:23.2]} 24... Be6 {[%clk 0:01:07.1]} 25. Rxc6
{[%clk 0:02:20.4]} 25... Nd7 {[%clk 0:00:59.6]} 26. Rxd7+ {[%clk 0:02:18.7]}
26... Rxd7 {[%clk 0:00:50.4]} 27. Nc5+ {[%clk 0:02:17.3]} 1-0

[Event "*** Titled Tuesday Blitz"]
[Site "Chess.com"]
[Date "2020.02.04"]
[Round "5"]
[White "SanchezKelvin"]
[Black "Gentlejimmy7"]
[Result "1-0"]
[WhiteElo "2363"]
[BlackElo "2631"]
[TimeControl "180+2"]
[EndTime "14:02:38 PST"]
[Termination "SanchezKelvin won by resignation"]

1. d4 {[%clk 0:03:01.9]} 1... Nf6 {[%clk 0:02:41.3]} 2. c4 {[%clk 0:03:00.9]}
2... g6 {[%clk 0:02:41.2]} 3. Nc3 {[%clk 0:02:53.9]} 3... d5 {[%clk 0:02:41.7]}
4. Nf3 {[%clk 0:02:54.4]} 4... Bg7 {[%clk 0:02:41.8]} 5. Bg5 {[%clk 0:02:49]}
5... dxc4 {[%clk 0:02:41.8]} 6. e3 {[%clk 0:02:47.5]} 6... Be6 {[%clk
0:02:39.5]} 7. Ne5 {[%clk 0:02:39.5]} 7... Nd5 {[%clk 0:02:34.6]} 8. Nxc4 {[%clk
0:02:30.6]} 8... O-O {[%clk 0:02:30.9]} 9. e4 {[%clk 0:02:16.5]} 9... Nxc3
{[%clk 0:02:29.6]} 10. bxc3 {[%clk 0:02:16.2]} 10... c5 {[%clk 0:02:31.1]} 11.
Be3 {[%clk 0:02:13.5]} 11... Bxc4 {[%clk 0:02:10.3]} 12. Bxc4 {[%clk 0:02:12]}
12... Nc6 {[%clk 0:02:11.4]} 13. Bd5 {[%clk 0:02:00.1]} 13... cxd4 {[%clk
0:02:09.1]} 14. cxd4 {[%clk 0:01:57.8]} 14... Nb4 {[%clk 0:02:06.5]} 15. Bb3
{[%clk 0:01:48.8]} 15... Bxd4 {[%clk 0:02:07.6]} 16. Qxd4 {[%clk 0:01:47.2]}
16... Qa5 {[%clk 0:01:51.4]} 17. Bd2 {[%clk 0:01:44.8]} 17... Nc6 {[%clk
0:01:52.8]} 18. Bxa5 {[%clk 0:01:41.1]} 18... Nxd4 {[%clk 0:01:54.2]} 19. O-O
{[%clk 0:01:41.2]} 19... Rac8 {[%clk 0:01:50.1]} 20. Rfd1 {[%clk 0:01:39.4]}
20... e5 {[%clk 0:01:41.3]} 21. Kf1 {[%clk 0:01:35.4]} 21... b6 {[%clk
0:01:39.5]} 22. Be1 {[%clk 0:01:26]} 22... Rc5 {[%clk 0:01:30.3]} 23. Bb4 {[%clk
0:01:22.5]} 1-0

[Event "*** Titled Tuesday Blitz"]
[Site "Chess.com"]
[Date "2020.02.04"]
[Round "5"]
[White "Lovkov_Roman"]
[Black "GM_dmitrij"]
[Result "1-0"]
[WhiteElo "2727"]
[BlackElo "2907"]
[TimeControl "180+2"]
[EndTime "14:02:55 PST"]
[Termination "Lovkov_Roman won by resignation"]

1. e4 {[%clk 0:03:01.9]} 1... c5 {[%clk 0:02:57.6]} 2. c3 {[%clk 0:03:02.6]}
2... d5 {[%clk 0:02:58.7]} 3. exd5 {[%clk 0:03:03.7]} 3... Qxd5 {[%clk
0:03:00.6]} 4. Nf3 {[%clk 0:03:05.2]} 4... g6 {[%clk 0:03:01.5]} 5. Na3 {[%clk
0:03:05.4]} 5... Bg7 {[%clk 0:03:01.6]} 6. Bc4 {[%clk 0:03:06.4]} 6... Qe4+
{[%clk 0:03:02]} 7. Be2 {[%clk 0:03:06.5]} 7... Nh6 {[%clk 0:02:58.1]} 8. O-O
{[%clk 0:03:06.8]} 8... O-O {[%clk 0:02:57.9]} 9. Re1 {[%clk 0:03:05.5]} 9...
Qc6 {[%clk 0:02:44]} 10. d4 {[%clk 0:02:59.5]} 10... Rd8 {[%clk 0:02:33.8]} 11.
Bxh6 {[%clk 0:01:51.7]} 11... Bxh6 {[%clk 0:02:34.3]} 12. Ne5 {[%clk 0:01:52.7]}
12... Qe8 {[%clk 0:02:09.6]} 13. Nb5 {[%clk 0:01:46.9]} 13... Na6 {[%clk
0:02:08.3]} 14. Bc4 {[%clk 0:01:43]} 14... e6 {[%clk 0:02:06.9]} 15. Qf3 {[%clk
0:01:05.7]} 15... cxd4 {[%clk 0:01:59.2]} 16. Nxd4 {[%clk 0:01:06.2]} 16... Bg7
{[%clk 0:01:55.1]} 17. Bxa6 {[%clk 0:00:57.5]} 17... Rd5 {[%clk 0:01:41.5]} 18.
Ng4 {[%clk 0:00:47]} 18... bxa6 {[%clk 0:01:36.4]} 19. Qxd5 {[%clk 0:00:47.3]}
19... Bd7 {[%clk 0:01:34.8]} 20. Qf3 {[%clk 0:00:44.5]} 20... e5 {[%clk
0:01:32.3]} 21. Nf6+ {[%clk 0:00:44]} 21... Bxf6 {[%clk 0:01:32.7]} 22. Qxf6
{[%clk 0:00:45.9]} 1-0

[Event "*** Titled Tuesday Blitz"]
[Site "Chess.com"]
[Date "2020.02.04"]
[Round "5"]
[White "alishersuleymenov"]
[Black "Aygehovit1992"]
[Result "0-1"]
[WhiteElo "2787"]
[BlackElo "2664"]
[TimeControl "180+2"]
[EndTime "14:03:44 PST"]
[Termination "Aygehovit1992 won by resignation"]

1. d4 {[%clk 0:03:01.9]} 1... Nf6 {[%clk 0:02:58.8]} 2. Nf3 {[%clk 0:03:03.3]}
2... g6 {[%clk 0:02:59.5]} 3. Bg5 {[%clk 0:03:04.6]} 3... Bg7 {[%clk 0:03:00.6]}
4. Nbd2 {[%clk 0:03:06.3]} 4... d5 {[%clk 0:03:02]} 5. c3 {[%clk 0:03:07.4]}
5... O-O {[%clk 0:03:03]} 6. e3 {[%clk 0:03:09]} 6... c6 {[%clk 0:03:03.3]} 7.
Be2 {[%clk 0:03:09.6]} 7... h6 {[%clk 0:03:03.6]} 8. Bh4 {[%clk 0:03:10.7]} 8...
Nbd7 {[%clk 0:03:02.9]} 9. h3 {[%clk 0:03:11.8]} 9... Re8 {[%clk 0:03:01.4]} 10.
Bg3 {[%clk 0:03:13.1]} 10... Ne4 {[%clk 0:02:58.8]} 11. Nxe4 {[%clk 0:03:12.2]}
11... dxe4 {[%clk 0:03:00.7]} 12. Nd2 {[%clk 0:03:13.8]} 12... f5 {[%clk
0:03:02]} 13. O-O {[%clk 0:03:15.1]} 13... e5 {[%clk 0:03:02.7]} 14. Nc4 {[%clk
0:03:16.2]} 14... exd4 {[%clk 0:03:01.1]} 15. exd4 {[%clk 0:03:13]} 15... Nf6
{[%clk 0:03:00.8]} 16. Nd6 {[%clk 0:03:10.4]} 16... Re7 {[%clk 0:02:59.8]} 17.
Bc4+ {[%clk 0:02:53.7]} 17... Kh7 {[%clk 0:02:58.1]} 18. d5 {[%clk 0:01:25]}
18... cxd5 {[%clk 0:02:49]} 19. Bxd5 {[%clk 0:01:26.9]} 19... Nxd5 {[%clk
0:02:46.6]} 20. Qxd5 {[%clk 0:01:28.8]} 20... Be6 {[%clk 0:02:46.4]} 21. Qb5
{[%clk 0:01:30.1]} 21... Qd7 {[%clk 0:02:40]} 22. Qb4 {[%clk 0:01:28.6]} 22...
a5 {[%clk 0:02:35.6]} 23. Qc5 {[%clk 0:01:22.2]} 23... Qc6 {[%clk 0:02:26.1]}
24. Qxc6 {[%clk 0:01:15.7]} 24... bxc6 {[%clk 0:02:26.4]} 25. Rfe1 {[%clk
0:01:17.3]} 25... a4 {[%clk 0:02:21]} 26. a3 {[%clk 0:01:15.9]} 26... g5 {[%clk
0:01:51]} 27. f3 {[%clk 0:01:11.4]} 27... f4 {[%clk 0:01:43.6]} 28. Rxe4 {[%clk
0:01:12.1]} 28... fxg3 {[%clk 0:01:44.5]} 29. Rae1 {[%clk 0:01:13.2]} 29... Rd8
{[%clk 0:01:43.1]} 30. Nf5 {[%clk 0:00:39.2]} 30... Ree8 {[%clk 0:01:37.7]} 0-1

[Event "*** Titled Tuesday Blitz"]
[Site "Chess.com"]
[Date "2020.02.04"]
[Round "5"]
[White "guillembaches"]
[Black "MarcoRiehle"]
[Result "0-1"]
[WhiteElo "2391"]
[BlackElo "2642"]
[TimeControl "180+2"]
[EndTime "14:03:49 PST"]
[Termination "MarcoRiehle won by resignation"]

1. e4 {[%clk 0:03:01.9]} 1... e5 {[%clk 0:03:00.4]} 2. Nf3 {[%clk 0:03:03.1]}
2... Nf6 {[%clk 0:03:01.1]} 3. Nc3 {[%clk 0:03:04.2]} 3... Nc6 {[%clk
0:03:01.2]} 4. d4 {[%clk 0:03:05.1]} 4... exd4 {[%clk 0:03:02.5]} 5. Nxd4 {[%clk
0:03:07]} 5... Bb4 {[%clk 0:03:03.6]} 6. Nxc6 {[%clk 0:03:07.8]} 6... bxc6
{[%clk 0:03:05.5]} 7. Bd3 {[%clk 0:03:09.1]} 7... d5 {[%clk 0:03:02.8]} 8. Bd2
{[%clk 0:03:10.2]} 8... O-O {[%clk 0:03:00.6]} 9. O-O {[%clk 0:03:11]} 9... Re8
{[%clk 0:02:59.1]} 10. Nxd5 {[%clk 0:03:03.5]} 10... cxd5 {[%clk 0:02:57.6]} 11.
Bxb4 {[%clk 0:03:02.4]} 11... dxe4 {[%clk 0:02:57]} 12. Bb5 {[%clk 0:02:43.5]}
12... Bd7 {[%clk 0:02:50.4]} 13. Bxd7 {[%clk 0:02:42.4]} 13... Qxd7 {[%clk
0:02:52.3]} 14. Bc3 {[%clk 0:02:35.5]} 14... Qxd1 {[%clk 0:02:41.7]} 15. Raxd1
{[%clk 0:02:35.1]} 15... Rad8 {[%clk 0:02:43.2]} 16. Bxf6 {[%clk 0:02:25.9]}
16... gxf6 {[%clk 0:02:42.6]} 17. Rfe1 {[%clk 0:02:24.6]} 17... f5 {[%clk
0:02:43]} 18. g3 {[%clk 0:02:24.8]} 18... Kg7 {[%clk 0:02:41.1]} 19. Kf1 {[%clk
0:02:25.6]} 19... Kf6 {[%clk 0:02:41.5]} 20. Ke2 {[%clk 0:02:26.4]} 20... Ke5
{[%clk 0:02:35.6]} 21. Rxd8 {[%clk 0:01:52.9]} 21... Rxd8 {[%clk 0:02:33.3]} 22.
Rd1 {[%clk 0:01:33.3]} 22... Rxd1 {[%clk 0:02:08.6]} 23. Kxd1 {[%clk 0:01:35.2]}
23... f4 {[%clk 0:02:09.4]} 24. gxf4+ {[%clk 0:01:27.5]} 24... Kxf4 {[%clk
0:02:09.7]} 25. Ke2 {[%clk 0:01:28.8]} 25... f5 {[%clk 0:02:03.2]} 26. c4 {[%clk
0:01:13.2]} 26... Ke5 {[%clk 0:01:49.4]} 27. b4 {[%clk 0:00:48.5]} 27... Kd4
{[%clk 0:01:47.5]} 28. c5 {[%clk 0:00:49.7]} 28... f4 {[%clk 0:01:46.7]} 29. Kd2
{[%clk 0:00:22]} 29... Kc4 {[%clk 0:01:45.9]} 30. a3 {[%clk 0:00:22.5]} 30...
Kb3 {[%clk 0:01:45.4]} 0-1

[Event "*** Titled Tuesday Blitz"]
[Site "Chess.com"]
[Date "2020.02.04"]
[Round "5"]
[White "TristanCalistri"]
[Black "Blitzstream"]
[Result "0-1"]
[WhiteElo "2282"]
[BlackElo "2726"]
[TimeControl "180+2"]
[EndTime "14:03:55 PST"]
[Termination "Blitzstream won by resignation"]

1. e4 {[%clk 0:03:00.7]} 1... d5 {[%clk 0:03:00.9]} 2. exd5 {[%clk 0:03:01.1]}
2... Qxd5 {[%clk 0:03:02.8]} 3. Nf3 {[%clk 0:03:01.9]} 3... Bg4 {[%clk
0:03:03.5]} 4. Be2 {[%clk 0:03:02.4]} 4... Nc6 {[%clk 0:03:04.8]} 5. h3 {[%clk
0:03:03.6]} 5... Bxf3 {[%clk 0:03:04.9]} 6. Bxf3 {[%clk 0:03:04.8]} 6... Qd7
{[%clk 0:03:06.8]} 7. d4 {[%clk 0:03:01.6]} 7... O-O-O {[%clk 0:03:03.7]} 8. c3
{[%clk 0:02:43.4]} 8... Nf6 {[%clk 0:03:00.9]} 9. O-O {[%clk 0:02:25.5]} 9... e5
{[%clk 0:02:57.6]} 10. Qb3 {[%clk 0:01:38.2]} 10... e4 {[%clk 0:02:52]} 11. Be2
{[%clk 0:01:38]} 11... g5 {[%clk 0:02:03.8]} 12. Bxg5 {[%clk 0:01:35.4]} 12...
Rg8 {[%clk 0:02:03.9]} 13. h4 {[%clk 0:00:44.2]} 13... Be7 {[%clk 0:01:45.6]}
14. Bc4 {[%clk 0:00:21.5]} 14... Na5 {[%clk 0:01:24.4]} 15. Qb5 {[%clk
0:00:22.1]} 15... Nxc4 {[%clk 0:01:25.3]} 16. Qxc4 {[%clk 0:00:23.6]} 16... h6
{[%clk 0:01:21.5]} 17. Bxf6 {[%clk 0:00:22.4]} 17... Rxg2+ {[%clk 0:01:03.2]}
18. Kxg2 {[%clk 0:00:21.8]} 18... Qg4+ {[%clk 0:00:59.8]} 19. Kh2 {[%clk
0:00:22.8]} 19... Rg8 {[%clk 0:00:54.8]} 0-1